Cogmind - Beta 15 @@@ ROGUE MODE // 2025.05.20 @ 20:51:48 Player: celerysam Result: Destroyed by H-88 Terminator with KE Penetrator Performance ------------- Evolutions (8) 4000 Regions Visited (8) 1600 Robots Destroyed (19) 95 Value Destroyed (493) 493 Prototype IDs (38) 760 Alien Tech Used (0) 0 Bonus (1448) 1448 TOTAL SCORE: 8396 Bonus ------- Follower Combat Kills 148 Registered with UFD 300 Met Optimus in HQ 500 Hacked Protovariant 500 Cogmind --------- Core Integrity 0/1450 Matter 54/300 Energy 99/100 System Corruption 10% Temperature Cool (0) Movement Core (50) Location -2/Research Parts ------- > --- POWER (4) -------- (None) > --- PROPULSION (8) --- (None) > --- UTILITY (7) ------ Advanced System Shield > --- WEAPON (4) ------- (None) > --- INVENTORY (5) ---- Light Particle Reactor Improved Reaction Control System Centrium Medium Armor Plating Advanced Remote Datajack Peak State ------------ > --- POWER ------------ Light Angular Momentum Engine Micro Antimatter Reactor > --- PROPULSION ------- Diametric Drive Q-thruster Cooled Impulse Thruster Flightbrick > --- UTILITY ---------- Advanced Power Amplifier Active Sensor Suite ECM Suite Advanced Reaction Control System Improved Core Shielding > --- WEAPON ----------- Heavy Tesla Rifle Advanced Datajack Makeshift Sword Force Lance > --- INVENTORY -------- Biometal Leg Impulse Thruster Array Advanced Force Field Advanced System Shield [Rating: 150] Favorites ----------- Power Ion Engine Engine Ion Engine Power Core Light Fission Core Reactor Micro Antimatter Reactor Propulsion Light Treads Treads Light Treads Leg Aluminum Leg Wheel Wheel Hover Unit Improved Antigrav System Flight Unit Flightbrick Utility Large Storage Unit Device ECM Suite Storage Large Storage Unit Processor Advanced Visual Processing Unit Hackware Advanced System Shield Protection Improved Core Shielding Weapon Makeshift Sword Energy Gun Medium Laser Energy Cannon Enhanced Nova Cannon Ballistic Gun Assault Rifle Ballistic Cannon Battle Cannon Impact Weapon Hammer Slashing Weapon Makeshift Sword Piercing Weapon Force Lance Special Melee Weapon Advanced Datajack Build | -11 -10 -10 -7 -5 -4 -3 -3 -2 ------- Run | Yrd Mat Sub Scr Fac Fac Res Tes Res Slots Evolved 16 | . . . . 10 2 2 . 2 Power 3 | . . . . 1 1 1 . . Propulsion 6 | . . . . 4 1 . . 1 Utility 5 | . . . . 3 . 1 . 1 Weapon 2 | . . . . 2 . . . . Parts Attached 74 | 6 4 7 2 9 8 8 12 18 Power 12 | 1 . 1 . 3 1 2 1 3 Engine 5 | 1 . 1 . 2 1 . . . Core 1 | . . . . 1 . . . . Reactor 6 | . . . . . . 2 1 3 Propulsion 23 | 2 2 2 . 1 3 2 2 9 Treads 2 | . . 2 . . . . . . Leg 5 | 2 . . . . . . . 3 Wheel 2 | . 2 . . . . . . . Hover 4 | . . . . . . . . 4 Flight 10 | . . . . 1 3 2 2 2 Utility 23 | 1 2 1 . 2 4 3 6 4 Device 15 | . 1 1 . 2 3 3 4 1 Storage 2 | 1 1 . . . . . . . Processor 2 | . . . . . . . 1 1 Hackware 2 | . . . . . . . . 2 Protection 2 | . . . . . 1 . 1 . Artifact . | . . . . . . . . . Weapon 16 | 2 . 3 2 3 . 1 3 2 Energy Gun 4 | 1 . 1 . . . . 1 1 Energy Cannon 1 | . . . . . . . . 1 Ballistic Gun 4 | 1 . 1 . 2 . . . . Ballistic Cannon 1 | . . . . 1 . . . . Launcher . | . . . . . . . . . Special Weapon . | . . . . . . . . . Impact Weapon 2 | . . 1 . . . . 1 . Slashing Weapon 1 | . . . 1 . . . . . Piercing Weapon 2 | . . . 1 . . 1 . . Special Melee Weapon 1 | . . . . . . . 1 . Unidentified Prototypes 10 | . . 1 . . 1 2 5 1 Parts Lost 37 | . . 4 . . 2 3 11 17 Power 5 | . . . . . . 2 3 . Propulsion 15 | . . 2 . . . . 4 9 Utility 10 | . . . . . 2 1 3 4 Weapon 7 | . . 2 . . . . 1 4 Highest Loss Streak 13 | . . 2 . . 1 1 4 13 To Critical Strikes 1 | . . 1 . . . . . . Average Backups 9 | 4 8 11 11 5 4 4 4 4 Power 2 | 1 2 3 3 1 . . . . Propulsion 1 | 2 4 1 1 . . . 1 1 Utility 1 | . . 1 1 . 2 3 2 2 Weapon 2 | . 1 3 3 2 2 . . . Tool/Special . | . . . . . . . . . Unused Backups 19 | . 1 3 6 3 2 . 1 3 Power 1 | . . . . 1 . . . . Propulsion 4 | . . . . 1 2 . 1 . Utility 4 | . . . 2 . . . . 2 Weapon 8 | . 1 3 3 1 . . . . Tool/Special 2 | . . . 1 . . . . 1 Average Slot Usage (%) 88 | . 98 99 99 39 49 65 42 37 Engine 11 | . 14 14 14 9 9 5 . . Treads 18 | . . 25 28 . . . . . Leg 1 | . 15 . . . . . . 1 Wheel 1 | . 12 2 . . . . . . Flight 2 | . . . . 5 9 18 11 7 Device 13 | . 12 14 13 13 14 17 13 7 Storage 10 | . 14 14 14 . . . . . Energy Gun 10 | . 14 14 14 3 . . . . Ballistic Gun 2 | . 14 2 . . . 3 . . Impact Weapon 4 | . . 11 . . . . . . Slashing Weapon 4 | . . . 13 5 4 4 2 . Peak Build Rating 150 | 6 8 16 20 85 112 144 150 129 Average Rating 36 | 4 7 12 18 79 94 135 104 84 On Entrance 49 | . 6 8 16 20 82 112 128 77 Naked Turns . | . . . . . . . . . Heaviest Build 46 | 14 31 31 32 26 36 46 40 45 Greatest Support 60 | 20 20 40 40 24 51 46 46 60 Greatest Overweight (x) 3 | . 1 3 . 1 . 2 . 2 Average Overweight (x) . | . . . . . . . . . Largest Inventory Capacity 15 | 8 15 15 15 15 5 5 5 5 Average Capacity 12 | 6 11 15 15 5 5 5 5 5 Most Carried 15 | 7 12 15 15 11 5 5 5 5 Average Carried 11 | 5 8 13 14 5 4 4 4 4 Final Capacity 15 | 8 15 15 15 5 5 5 5 5 Final Carried 15 | 6 12 15 15 5 5 5 4 4 Class Distribution -------------------- 77% | Mutant 12% | Ninja 3% | Scout 3% | Generator-Ninja Dominant Class ---------------- Mutant | -10/Materials Mutant | -10/Subcaves Mutant | -7/Scraptown Ninja | -5/Factory Ninja | -4/Factory Ninja | -3/Research Ninja | -3/Testing Hacker-Ninja | -2/Research Resources | -11 -10 -10 -7 -5 -4 -3 -3 -2 ----------- Run | Yrd Mat Sub Scr Fac Fac Res Tes Res Matter Collected 858 | 197 163 117 30 110 . 85 72 84 Remotely . | . . . . . . . . . Salvage Created 652 | . 318 63 . 54 36 83 . 98 Parts 42 | . 16 6 . 4 5 4 . 7 Haulers Intercepted 2 | . 1 . . . . 1 . . Recyclers Shooed . | . . . . . . . . . Parts Field Recycled . | . . . . . . . . . Retrieved Matter . | . . . . . . . . . Parts Self-Destructed 17 | . . 17 . . . . . . Prevented . | . . . . . . . . . Kills | -11 -10 -10 -7 -5 -4 -3 -3 -2 ------- Run | Yrd Mat Sub Scr Fac Fac Res Tes Res Combat Hostiles Destroyed 15 | . 7 4 . 1 2 . . 1 Melee 1 | . . . . 1 . . . . Guns 11 | . 7 4 . . . . . . Cannons 3 | . . . . . 2 . . 1 Classes Destroyed 6 | . 4 . . 1 . . . 1 Hauler 2 | . 1 . . . . 1 . . Watcher 2 | . 1 . . . . . . 1 Swarmer 9 | . 3 4 . . 2 . . . Grunt 4 | . 4 . . . . . . . Hunter 1 | . . . . 1 . . . . Programmer 1 | . . . . . . . . 1 Best Kill Streak 4 | . 4 2 . 1 2 1 . 1 Combat Bots Only 4 | . 4 2 . 1 2 . . 1 Max Kills in Single Turn 1 | . 1 1 . 1 1 1 . 1 Gunslinging . | . . . . . . . . . Exploded . | . . . . . . . . . Melee 1 | . . . . 1 . . . . Uniques/NPCs Destroyed . | . . . . . . . . . Combat | -11 -10 -10 -7 -5 -4 -3 -3 -2 -------- Run | Yrd Mat Sub Scr Fac Fac Res Tes Res Hostile Shots Fired 640 | . 17 34 . 9 81 157 112 230 Missed 293 | . 2 8 . 4 44 89 58 88 Hits 347 | . 15 26 . 5 37 68 54 142 Melee 1 | . . . . . 1 . . . Projectile 346 | . 15 26 . 5 36 68 54 142 AOE 3 | . . . . . 3 . . . Critical Strikes 11 | . . 1 . . . 4 . 6 Actively Blocked 1 | . . . . . . 1 . . Part Disruptions 3 | . . . . . . 1 1 1 Damage Taken 7524 | . 196 246 . 84 807 1625 1617 2949 Core 1983 | . 24 39 . 14 35 46 350 1475 Absorbed by Shields . | . . . . . . . . . Redirected to Shielding 27 | . . . . . 8 19 . . Core Remaining (%) 87 | 100 . . 74 98 96 . 69 . Volleys Fired 47 | . 22 16 . 4 4 . . 1 Largest 2 | . 2 2 . 1 1 . . 1 Hottest 120 | . 70 70 . 33 33 . . 120 Shots Fired 81 | . 44 28 . 4 4 . . 1 Gun 72 | . 44 28 . . . . . . Cannon 9 | . . . . 4 4 . . 1 Launcher . | . . . . . . . . . Special . | . . . . . . . . . Kinetic 42 | . 22 12 . 4 4 . . . Thermal 39 | . 22 16 . . . . . 1 Explosive . | . . . . . . . . . Electromagnetic . | . . . . . . . . . Robot Hit Streak 5 | . 5 5 . 4 2 . . 3 Robot Miss Streak 4 | . 2 4 . 2 1 . . . Penetration Max . | . . . . . . . . . Secondary Targets 1 | . 1 . . . . . . . Max Gunslinging Chain 1 | . 1 . . . . . . . Shots Hit Robots 59 | . 26 15 . 3 3 7 1 4 Core Hits 27 | . 12 4 . 3 2 4 . 2 Critical Kills 1 | . 1 . . . . . . . Critical Parts Destroyed . | . . . . . . . . . Critical Strikes 3 | . 2 . . . . . . 1 Burn 1 | . 1 . . . . . . . Destroy 1 | . 1 . . . . . . . Impale 1 | . . . . . . . . 1 Melee Attacks 215 | . . 50 . 7 19 81 36 22 Impact 51 | . . 50 . . . . 1 . Slashing 120 | . . . . 7 19 75 19 . Piercing 42 | . . . . . . 6 14 22 Sneak Attacks 1 | . . . . . . 1 . . Combat Hostiles . | . . . . . . . . . Follow-up Attacks 1 | . . . . . . 1 . . Damage Inflicted 1248 | . 350 184 . 70 64 304 52 224 Guns 534 | . 350 184 . . . . . . Cannons 154 | . . . . 35 64 . . 55 Explosions . | . . . . . . . . . Melee 557 | . . . . 35 . 304 52 166 Ramming 3 | . . . . . . . . 3 Kinetic 336 | . 166 71 . 35 64 . . . Thermal 352 | . 184 113 . . . . . 55 Explosive . | . . . . . . . . . Electromagnetic . | . . . . . . . . . Impact . | . . . . . . . . . Slashing 236 | . . . . 35 . 201 . . Piercing 321 | . . . . . . 103 52 166 Highest Corruption 33 | . . . . . 1 10 33 10 Average Corruption 7 | . . . . . 1 2 18 4 Corruption Purged . | . . . . . . . . . Corruption Blocked . | . . . . . . . . . Effects 30 | . . . . . 3 2 20 5 Message Errors 9 | . . . . . 1 2 5 1 Matter Fused 8 | . . . . . . . 5 3 Heat Flow Errors 1 | . . . . . . . . 1 Energy Discharges 4 | . . . . . 1 . 3 . Data Loss (minor) 4 | . . . . . 1 . 3 . Misdirections 4 | . . . . . . . 4 . Overload Shots . | . . . . . . . . . Overflow Damage 90 | . . . . . . 14 2 74 Projectiles . | . . . . . . . . . Explosions . | . . . . . . . . . Melee 90 | . . . . . . 14 2 74 Knockbacks 2 | . . . . 1 1 . . . Impact . | . . . . . . . . . Kinetic 2 | . . . . 1 1 . . . Secondary . | . . . . . . . . . Self-Inflicted Damage 1 | . . . . . . . . 1 Shots . | . . . . . . . . . Rammed 1 | . . . . . . . . 1 Targets Rammed 1 | . . . . . . . . 1 Kicked . | . . . . . . . . . Crushed . | . . . . . . . . . Highest Temperature 352 | . 167 . . . 40 352 8 342 Average Temperature 133 | . 50 . . . 13 180 4 151 Received Heat Transfer 833 | . 66 12 . . 60 90 54 551 Effects 2 | . . . . . . 2 . . Energy Bleed 1 | . . . . . . 1 . . Damage (minor) 1 | . . . . . . 1 . . Siege Activations . | . . . . . . . . . Martial Activations . | . . . . . . . . . Shielding Activations . | . . . . . . . . . Robots Disrupted . | . . . . . . . . . Combat Hostiles . | . . . . . . . . . Robots Corrupted . | . . . . . . . . . Combat Hostiles . | . . . . . . . . . Parts Fried . | . . . . . . . . . Impact Corruptions . | . . . . . . . . . Robots Melted . | . . . . . . . . . Combat Hostiles . | . . . . . . . . . Parts Melted 2 | . 2 . . . . . . . Heat Transferred 999 | . 629 333 . . . . . 37 Parts Sabotaged . | . . . . . . . . . Parts Stolen . | . . . . . . . . . Parts Stripped . | . . . . . . . . . Power Chain Reactions . | . . . . . . . . . Alert | -11 -10 -10 -7 -5 -4 -3 -3 -2 ------- Run | Yrd Mat Sub Scr Fac Fac Res Tes Res Maximum Alert Level 2 | . . . . 1 1 2 1 1 Low Security (%) 47 | 100 100 . . 96 69 14 4 12 Level 1 48 | . . . . 3 30 71 95 87 Level 2 3 | . . . . . . 14 . . Level 3 . | . . . . . . . . . Level 4 . | . . . . . . . . . Level 5 . | . . . . . . . . . High Security . | . . . . . . . . . Max Security . | . . . . . . . . . Peak Influence 497 | . 90 . . 226 279 497 396 377 Initial 271 | . . . . . 81 135 271 203 Average 180 | . 31 . . 64 151 271 270 274 Influence Increases 2623 | . 185 189 . 268 438 688 341 514 Destroy 0b10 Robot/C 420 | . 140 140 . 80 40 . . 20 Destroy 0b10 Robot/NC 20 | . 10 . . . . 5 . 5 Destroy Leader 88 | . 34 10 . 30 . 2 . 12 Allied During Kill 63 | . . 9 . 54 . . . . Disable Machine 15 | . . . . . 15 . . . Destroy Structure 242 | . 1 . . 4 38 136 36 27 Partial Spotted 60 | . . . . . . 45 . 15 Lose Combat Pursuer 315 | . . 30 . . 45 . 105 135 Active Sensor Use 1400 | . . . . 100 300 500 200 300 Influence Decreases 2246 | . 156 218 . 102 345 464 462 499 Entered New Map 595 | . . 15 . . 85 124 212 159 Time Decay 1148 | . 156 150 . 42 180 310 140 170 Lost Part 343 | . . 13 . . 20 30 110 170 Lost Ally 160 | . . 40 . 60 60 . . . Squads Dispatched 34 | . 2 . . 3 6 11 7 5 Investigation 15 | . 1 . . 1 3 5 2 3 Extermination 6 | . . . . . 1 3 1 1 Reinforcement 12 | . 1 . . 2 2 3 3 1 Assault 1 | . . . . . . . 1 . Garrison . | . . . . . . . . . Intercept . | . . . . . . . . . Searches Triggered . | . . . . . . . . . Construction Impeded 1 | . . . . 1 . . . . Haulers Reinforced . | . . . . . . . . . Active Scanning Responses 14 | . . . . 1 3 5 2 3 Cargo Convoy Interrupts . | . . . . . . . . . Stealth | -11 -10 -10 -7 -5 -4 -3 -3 -2 --------- Run | Yrd Mat Sub Scr Fac Fac Res Tes Res Distress Signals 12 | . . . . . 4 4 2 2 Communications Jammed 20 | . . . . . . . . 20 Distress Signals 20 | . . . . . . . . 20 Times Spotted 189 | . 14 18 . 2 45 47 34 29 Peak Tracking Total 25 | . 3 5 . 1 14 15 12 25 Tactical Retreats 32 | . 1 3 . . 9 11 7 1 Traps | -11 -10 -10 -7 -5 -4 -3 -3 -2 ------- Run | Yrd Mat Sub Scr Fac Fac Res Tes Res Traps Triggered 4 | . 2 1 . . 1 . . . Indirectly . | . . . . . . . . . Trap Hack Attempts . | . . . . . . . . . Triggered . | . . . . . . . . . Disarmed . | . . . . . . . . . Reprogrammed . | . . . . . . . . . Reused . | . . . . . . . . . Traps Extracted . | . . . . . . . . . Installed . | . . . . . . . . . Triggered . | . . . . . . . . . Machines | -11 -10 -10 -7 -5 -4 -3 -3 -2 ---------- Run | Yrd Mat Sub Scr Fac Fac Res Tes Res Machines Disabled 3 | . 1 1 . . 1 . . . Max in Single Turn 1 | . 1 1 . . . . . . Machines Repaired . | . . . . . . . . . Machines Dismantled . | . . . . . . . . . Machines Sabotaged . | . . . . . . . . . Overloaded Fab Kills . | . . . . . . . . . Hacking | -11 -10 -10 -7 -5 -4 -3 -3 -2 --------- Run | Yrd Mat Sub Scr Fac Fac Res Tes Res Machines Accessed 13 | . . 2 4 . . 3 1 3 Terminals 4 | . . . . . . 2 1 1 Fabricators 1 | . . . . . . 1 . . Repair Stations 1 | . . . . . . . . 1 Recycling Units 1 | . . . . . . . . 1 Scanalyzers . | . . . . . . . . . Garrison Access . | . . . . . . . . . Total Hacks 24 | . . 6 8 . . 4 2 4 Successful 17 | . . 6 8 . . 1 1 1 Failed 7 | . . . . . . 3 1 3 Catastrophic 1 | . . . . . . 1 . . Database Lockouts . | . . . . . . . . . Manual 4 | . . 2 . . . . 2 . Terminals 6 | . . . . . . 3 2 1 Fabricators 1 | . . . . . . 1 . . Repair Stations 1 | . . . . . . . . 1 Recycling Units 2 | . . . . . . . . 2 Scanalyzers . | . . . . . . . . . Garrison Access . | . . . . . . . . . Terminal Hacks 16 | . . 6 8 . . 1 1 . Record 12 | . . 5 7 . . . . . Investigation Status 1 | . . . . . . 1 . . Proto ID Catalog 2 | . . 1 1 . . . . . Protovariant Controls 1 | . . . . . . . 1 . Fabricator Hacks . | . . . . . . . . . Repair Station Hacks . | . . . . . . . . . Recycling Unit Hacks 1 | . . . . . . . . 1 Report Inventory 1 | . . . . . . . . 1 Scanalyzer . | . . . . . . . . . Garrison Access Hacks . | . . . . . . . . . Unauthorized Hacks . | . . . . . . . . . Terminals . | . . . . . . . . . Fabricators . | . . . . . . . . . Repair Stations . | . . . . . . . . . Recycling Units . | . . . . . . . . . Scanalyzers . | . . . . . . . . . Garrison Access . | . . . . . . . . . Data Cores Recovered . | . . . . . . . . . Used . | . . . . . . . . . Hacking Detections 5 | . . . . . . 1 1 3 Full Trace Events . | . . . . . . . . . Feedback Events . | . . . . . . . . . Feedback Blocked . | . . . . . . . . . Robot Schematics Acquired 2 | . . . . . . . 2 . Robots Built . | . . . . . . . . . Authchips . | . . . . . . . . . Time . | . . . . . . . . . Total Robot Build Rating . | . . . . . . . . . Part Schematics Acquired 5 | . . . . . . . 5 . Parts Built . | . . . . . . . . . Authchips . | . . . . . . . . . Time . | . . . . . . . . . Total Part Build Rating . | . . . . . . . . . Parts Repaired . | . . . . . . . . . Time . | . . . . . . . . . Parts Recycled . | . . . . . . . . . Recycled Matter . | . . . . . . . . . Retrieved Matter . | . . . . . . . . . Retrieved Components . | . . . . . . . . . Parts Scanalyzed . | . . . . . . . . . Part Schematics Acquired . | . . . . . . . . . Parts Damaged . | . . . . . . . . . Bothacking | -11 -10 -10 -7 -5 -4 -3 -3 -2 ------------ Run | Yrd Mat Sub Scr Fac Fac Res Tes Res Used RIF Installer . | . . . . . . . . . Robots Hacked . | . . . . . . . . . Non-combat . | . . . . . . . . . Combat . | . . . . . . . . . Robot Hacks Applied . | . . . . . . . . . Relay Couplers Released . | . . . . . . . . . Fabnet Peak Effective % . | . . . . . . . . . Robots Rewired . | . . . . . . . . . Allies Hacked . | . . . . . . . . . Hacks Repelled . | . . . . . . . . . Allies | -11 -10 -10 -7 -5 -4 -3 -3 -2 -------- Run | Yrd Mat Sub Scr Fac Fac Res Tes Res Total Allies 14 | . . 14 . . . . . . Largest Group 11 | . . 11 11 11 5 . . . Highest-Rated Group 210 | . . 210 210 210 96 . . . Highest-Rated Ally 20 | . . 20 20 20 20 . . . Total Orders . | . . . . . . . . . Ally Attacks 76 | . . 20 . 52 4 . . . Total Damage 1129 | . . 395 . 715 19 . . . Kills 7 | . . 4 . 3 . . . . Allies Corrupted 2 | . . . . . 2 . . . Allies Melted . | . . . . . . . . . Intel | -11 -10 -10 -7 -5 -4 -3 -3 -2 ------- Run | Yrd Mat Sub Scr Fac Fac Res Tes Res Active Infowar (turns) 4566 | . 487 365 1977 101 374 698 293 271 Optics 156 | . . . . . . . . 156 A.S.S. 1670 | . . . . 100 374 698 293 205 Jamming 268 | . . . . . . . 47 221 ECM 3904 | . 487 365 1977 24 212 695 144 . Robot Analysis Total . | . . . . . . . . . Derelict Logs Recovered 4 | . . 1 3 . . . . . Drone Launches . | . . . . . . . . . Drone Recoveries . | . . . . . . . . . Exploration | -11 -10 -10 -7 -5 -4 -3 -3 -2 ------------- Run | Yrd Mat Sub Scr Fac Fac Res Tes Res Turns Passed 8038 | 73 526 3466 2097 163 374 698 296 345 Spaces Moved 7178 | 54 393 2137 1275 237 739 1522 383 438 Core 57 | 10 . . . . . . . 47 Treads 3126 | . . 1851 1275 . . . . . Legs 270 | 44 206 . . . . . . 20 Wheels 473 | . 187 286 . . . . . . Hover 59 | . . . . . . . . 59 Flight 3193 | . . . . 237 739 1522 383 312 Fastest Speed 27 | 50 95 95 160 40 27 27 27 35 Average Speed 95 | 107 108 151 160 40 35 28 32 46 Slowest Speed 200 | 120 120 160 160 80 40 184 45 200 Overloaded Moves . | . . . . . . . . . Propulsion Burnouts . | . . . . . . . . . Robots Hopped 19 | . . . . 1 4 12 1 1 Potential Cave-ins 11 | . . . . . . . 11 . Cave-ins Triggered 2 | . . . . . . . 2 . Exploration Rate (%) 44 | 4 73 95 84 6 22 38 59 21 Regions Visited 8 Branch Regions 3 Pre-discovered Areas 3 | . . 1 2 . . . . . Known Exits Taken 3 | . . . . 1 1 1 . . Unknown Exits Taken 5 | 1 1 1 1 . . . 1 . Scrap Searched 17 | . . 12 5 . . . . . Spaces Dug 130 | . . . . 1 19 70 31 9 Terrain Destroyed 130 | . . . . 1 19 70 31 9 Melee 130 | . . . . 1 19 70 31 9 Projectile . | . . . . . . . . . AOE . | . . . . . . . . . Terrain Rammed . | . . . . . . . . . Walls Destroyed . | . . . . . . . . . Machines Disabled . | . . . . . . . . . Actions | -11 -10 -10 -7 -5 -4 -3 -3 -2 --------- Run | Yrd Mat Sub Scr Fac Fac Res Tes Res Total 7960 | 66 450 2257 1337 295 823 1691 508 533 Wait 338 | . 22 26 47 26 47 79 57 34 Move 7131 | 53 392 2136 1274 234 730 1497 379 436 Hop 19 | . . . . 1 4 12 1 1 Pick Up 59 | 7 8 11 5 2 6 3 7 10 Fast Attach 35 | 5 . . 2 1 5 7 7 8 Attach 38 | 1 1 5 1 5 4 2 8 11 Detach 10 | . . 1 . 2 . . 4 3 Swap 15 | . 3 4 . 3 1 2 2 . Drop 54 | . 2 8 8 10 3 10 7 6 Fire 47 | . 22 16 . 4 4 . . 1 Melee 212 | . . 50 . 7 19 79 35 22 Ram 1 | . . . . . . . . 1 Kick . | . . . . . . . . . Crush . | . . . . . . . . . Escape Stasis 1 | . . . . . . . 1 . Rewire . | . . . . . . . . . Trap . | . . . . . . . . . Miscellaneous . | . . . . . . . . . Route ------- -11/Scrapyard -10/Materials (discovered 5 exits: [*Mat x2] / [*Min x2] / *Sub) -10/Subcaves (discovered 4 exits: [*Mat x2] / [*Rec] / *Scr) -7/Scraptown -5/Factory -4/Factory -3/Research -3/Testing -2/Research History --------- Turn | Location | Event 6 | -11/Scrapyard | Discovered new exit (range 16) 74 | -11/Scrapyard | Entered Materials 299 | -10/Materials | Discovered new exit (range 13) 314 | -10/Materials | Build established: Mutant 339 | -10/Materials | Discovered new exit (range 7) 427 | -10/Materials | Discovered new exit (range 9) 468 | -10/Materials | Discovered new exit (range 9) 595 | -10/Materials | Discovered new exit (range 7) 600 | -10/Materials | Entered Subcaves 601 | -10/Subcaves | Approached by a straggling Scientist 851 | -10/Subcaves | A swath of the cavern ceiling suddenly collapsed 859 | -10/Subcaves | Scientist uncovered a shortcut to Scraptown 900 | -10/Subcaves | Discovered new exit (range 12) 955 | -10/Subcaves | Visited triangular shrine 965 | -10/Subcaves | Found Prototype Device 966 | -10/Subcaves | Identified V3-11A's Pendant 971 | -10/Subcaves | Befriended Subdweller 1031 | -10/Subcaves | Befriended Subdweller 1257 | -10/Subcaves | Discovered new exit (range 11) 1342 | -10/Subcaves | Approached by friendly Subdweller 1451 | -10/Subcaves | Befriended Subdweller 1491 | -10/Subcaves | Befriended Subdweller 1491 | -10/Subcaves | Befriended Subdweller 1824 | -10/Subcaves | Visited 4L-MR0's lab 1840 | -10/Subcaves | Found Flightbrick 2071 | -10/Subcaves | A swath of the cavern ceiling suddenly collapsed 2281 | -10/Subcaves | Befriended Subdweller 2318 | -10/Subcaves | Discovered new exit (range 5) 2351 | -10/Subcaves | Shifting Twisted Machinery released Sub. Beam Cannon 2352 | -10/Subcaves | Shifting Twisted Machinery released Sub. Laser 2353 | -10/Subcaves | Shifting Twisted Machinery released Sub. Power Source 2383 | -10/Subcaves | Shifting Twisted Machinery released Sub. Machine Gun 2396 | -10/Subcaves | Befriended Subdweller 2411 | -10/Subcaves | Shifting Twisted Machinery released Riot Gun 2567 | -10/Subcaves | Shifting Twisted Machinery released Battle Rifle 2656 | -10/Subcaves | Befriended Subdweller 2656 | -10/Subcaves | Befriended Subdweller 2920 | -10/Subcaves | A Subdweller sparked back to life 2921 | -10/Subcaves | Befriended Subdweller 2923 | -10/Subcaves | Learned location of Zion (-7) 2931 | -10/Subcaves | Befriended Subdweller 2936 | -10/Subcaves | Befriended Subdweller 3251 | -10/Subcaves | Befriended Subdweller 3846 | -10/Subcaves | Visited Clippyterm 3851 | -10/Subcaves | Learned Factory garrison access intel 4066 | -10/Subcaves | Entered Scraptown 4066 | -7/Scraptown | Accompanied by 11 allies 4179 | -7/Scraptown | Delivered V3-11A's Pendant to T0-NE2 in exchange for information 4283 | -7/Scraptown | Visited Bundlers 4384 | -7/Scraptown | Visited The Evicted 4423 | -7/Scraptown | Visited SPCMW 4468 | -7/Scraptown | Visited Cyclists 4562 | -7/Scraptown | Scanned Subdweller tech in exchange for log data 4562 | -7/Scraptown | Learned Factory terminal intel 4578 | -7/Scraptown | Learned location of Testing (-3) 4579 | -7/Scraptown | Learned Research trap positions 4711 | -7/Scraptown | Heard Great Nut preacher, LISTEN AND RECITE! 5109 | -7/Scraptown | Visited UFD Registry 5109 | -7/Scraptown | Registered with UFD as "Flashchaser" 5152 | -7/Scraptown | Visited Infowarlord's Domain 5165 | -7/Scraptown | Found Active Sensor Suite 5195 | -7/Scraptown | Visited Science Guys 5264 | -7/Scraptown | Visited Science Testing Area 5499 | -7/Scraptown | Visited Chapter 10 5569 | -7/Scraptown | Visited Scrap Suit Storage 5626 | -7/Scraptown | Visited Scrapoid Pod Storage 5685 | -7/Scraptown | Visited Scrapoid Research Area 5733 | -7/Scraptown | Visited Observation Area 5801 | -7/Scraptown | Visited LU-1G1's Boring Crew 5860 | -7/Scraptown | Visited Modified Component R&D 6031 | -7/Scraptown | Met Optimus 6031 | -7/Scraptown | Accepted into 0bPrime 6134 | -7/Scraptown | Discovered new exit (range 3) 6163 | -7/Scraptown | Entered Factory 6163 | -5/Factory | Accompanied by 11 allies 6163 | -5/Factory | Evolved 10 slots: Power x1, Propulsion x4, Utility x3, Weapon x2 6164 | -5/Factory | Loaded intel: 26 terminal locations 6164 | -5/Factory | Attached Flightbrick, gained temporary slots: Utility x3 6165 | -5/Factory | Loaded intel: 4 garrison access locations 6262 | -5/Factory | Discovered new exit (range 9) 6282 | -5/Factory | Identified exit to Factory 6326 | -5/Factory | Entered another Factory area 6326 | -4/Factory | Accompanied by 5 allies 6326 | -4/Factory | Evolved 2 slots: Power x1, Propulsion x1 6350 | -4/Factory | Lost 3 allies 6544 | -4/Factory | Discovered new exit (range 16) 6700 | -4/Factory | Identified exit to Research 6700 | -4/Factory | Entered Research 6700 | -3/Research | Evolved 2 slots: Power x1, Utility x1 6701 | -3/Research | Loaded intel: 57 trap records 6792 | -3/Research | Build established: Ninja 6875 | -3/Research | Found Prototype Device 6875 | -3/Research | Identified Adv. EM Shield 7325 | -3/Research | Spotted B-86 Titan 7385 | -3/Research | Discovered new exit (range 4) 7386 | -3/Research | Identified exit to Testing 7398 | -3/Research | System corruption reached 10% 7398 | -3/Research | Entered Testing 7398 | -3/Testing | Spotted PL-UNALH9VFLQ 7417 | -3/Testing | Protovariant out of control (PY-LGGHZDSLUM) 7417 | -3/Testing | Unleashed a protovariant (PY-LGGHZDSLUM) 7466 | -3/Testing | Spotted PY-LGGHZDSLUM 7502 | -3/Testing | Lost 4 parts (1p2n1u) 7516 | -3/Testing | Spotted Investigator 7545 | -3/Testing | Crushed by falling debris 7556 | -3/Testing | Crushed by falling debris 7587 | -3/Testing | Lost 4 parts (1p1n1u1w) 7640 | -3/Testing | Found Prototype Device 7642 | -3/Testing | Identified Exp. Transmission Jammer 7662 | -3/Testing | System corruption reached 30% 7689 | -3/Testing | Discovered new exit (range 11) 7694 | -3/Testing | Entered Research 7694 | -2/Research | Evolved 2 slots: Propulsion x1, Utility x1 7906 | -2/Research | Lost 3 parts (2n1w) 7982 | -2/Research | Spotted B-90 Cyclops 8009 | -2/Research | Core integrity fell below 50% 8033 | -2/Research | Core integrity fell below 20% 8036 | -2/Research | System corruption reached 10% 8039 | -2/Research | Destroyed by H-88 Terminator with KE Penetrator Last Messages --------------- 08015_ K-01 Serf cleans the Reaction Chamber. 08019_ K-01 Serf cleans the Fabricator. 08020_ Slug penetrates Wall. 08020_ Penetrated by Slug. 08020_ K-01 Serf destroyed. 08020_ K-01 Serf collects debris. 08023_ Acquired Prototype Flight Unit. 08023_ Slug penetrates Wall. 08024_ Identified Imp. Q-thruster. 08024_ Slug penetrates Wall. 08027_ System corrupted: Heat flow error (+295). 08027_ Slug penetrates Wall. 08033_ Imp. Q-thruster destroyed. 08035_ Slammed into P-80 Master. 08036_ Slug penetrates Wall. 08036_ K-01 Serf cleans the Reaction Chamber. 08037_ Penetrated by Slug. 08037_ Slug penetrates T-07 Excavator. 08037_ T-07 Excavator destroyed. 08039_ Penetrated by Slug. Map ----- +----------------------------------------------------+ | #???????????????? ?????????????????????????????? | | #???????????????? ????????????????????????????? | | ????????????????? ????????????????????????????? | | ????????????????? ????????????????????????????? | | ????????????????? ????????????????????????????? | | ?????????????????# ???????????????????????????? | | ?????????????????? ???????????????????????????? | | ?????????????????? ???????????????????????????? | | ?????????????????? ???????????????????????????? | | ?????????????????? ????????????????????????????? | | ??????????????"??? ?????? ?????????????????????? | | ????????????? ?# ????? #???????????????????? | | ????????????? ?# ??? #???????????????????? | | ##############+### = ?? #?? ???????????????? | | [ ?? ### ???????????????? | | ? ???????????????? | | A ????????????????? | | """ ?????????????????? | | """ """ "" F"" ??????????????????? | | """ """ """""" ! #???????????????????? | | """ """k """"k=%*#???????????????????? | | k #???????????????????? | | h #???????????????????? | | !h #???????????????????? | | ######### =%! #???????????????????? | | ########??# ps @ #???????????????????? | | ##########s##########???????????????????? | | #??# #??????????????????????? | | #??## #??????????????????????? | | #???# """"" #??????????????????????? | | #???# """"" #??????????????????????? | | #???# """"" #??????????????????????? | | ##########???# #??????????????????????? | | ?????????????# = #??????????????????????? | | ?????????????# ! #??????????????????????? | | ?????????????# #??????????????????????? | | ?????????????# #??????????????????????? | | ?????????????# """ """ #??????????????????????? | | ?????????????# """T""" #??????????????????????? | | ?????????????##############??????????????????????? | | ?????????????????????????????????????????????????? | | ?????????????????????????????????????????????????? | | ?????????????????????????????????????????????????? | | ?????????????????????????????????????????????????? | | ?????????????????????????????????????????????????? | | ?????????????????????????????????????????????????? | | ?????????????????????????????????????????????????? | | ?????????????????????????????????????????????????? | | ?????????????????????????????????????????????????? | | ?????????????????????????????????????????????????? | +----------------------------------------------------+ Best States ------------- Heat Dissipation 136 Energy Generation 46 Energy Capacity 400 Matter Stores 300 Matter Capacity 300 Sight Range 20 Robot Scan Range 20 Terrain Scan Density 10 ECM Strength 1 Jamming Range 22 Power Amplification 30 Additional Mass Support 9 Base Temperature (-) 200 Corruption Containment 8 Core Shielding 30 Phase Shifting 5 Evasion (%) 77 Recoil Reduction 2 Offensive Hacking 10 Defensive Hacking 14 Item Schematics ----------------- Hvy. Dispersion Rifle | -3/Testing | Archive Cld. Plasma Rifle | -3/Testing | Archive Adv. KE Penetrator | -3/Testing | Archive Mni. Fusion Reactor | -3/Testing | Archive Exp. Power Amplifier | -3/Testing | Archive Robot Schematics ------------------ S-43 Plague | -3/Testing | Archive Y-72 Warden | -3/Testing | Archive Fabricated ------------ Nothing Repaired ---------- Nothing Alien Tech Used ----------------- None Achievements -------------- None Challenges ------------ None Game ------ Seed BoreFlightLauncher Manual? 0 Play Time 02:09:22 Cumulative 255.6 hours Start 2025.05.16 @ 19:07:24 End 2025.05.20 @ 20:51:48 Sessions 5 Manual Loads 0 Difficulty Rogue Special Mode None Game No. 379 Rogue 379 Adventurer 0 Explorer 0 Win Type - Total 1 Types 1/0/0/0/0/0/0/0/0/0 Lore% 61 Gallery% 62 Achievement% 43 Wizard Run 0 Options --------- Layout 1 ASCII 0 Keyboard 0 Movement Mouse Keybinds 0 Fullscreen 2 Font 24/Smallcaps Map View 50x35 Zoom Use 0% Tactical HUD 1 Map Filters NONE Filters NONE Steam 1 RUN: 3e910954-91f3-4df9-a4fb-14c2864bc6d6